Cogmind - Beta 15 @@@ ROGUE MODE // 2025.07.11 @ 09:59:53 Player: jimmyl Result: Destroyed by S-27 Virus with Autogun Performance ------------- Evolutions (5) 2500 Regions Visited (17) 3400 Robots Destroyed (236) 1180 Value Destroyed (10096) 10096 Prototype IDs (13) 260 Alien Tech Used (0) 0 Bonus (6332) 6332 TOTAL SCORE: 23768 Bonus ------- High Alert Combat Kills 1610 Follower Combat Kills 2698 Entered Garrisons 600 Used RIF Installer 1000 Built Enhanced Grunts 300 Met R17 at Cetus 500 Friendly Fire -376 Cogmind --------- Core Integrity 0/1000 Matter 300/300 Energy 95/100 System Corruption 21% Temperature Hot (287) Movement Core (150) Ox2 Location -5/Garrison Parts ------- > --- POWER (2) -------- (None) > --- PROPULSION (4) --- (None) > --- UTILITY (8) ------ Improved Target Analyzer > --- WEAPON (3) ------- Enhanced Force Lance > --- INVENTORY (5) ---- Improved Target Analyzer HERF Cannon Improved Remote Datajack Improved Remote Datajack Peak State ------------ > --- POWER ------------ Neutrino Core Antimatter Reactor > --- PROPULSION ------- Centrium Heavy Treads Centrium Heavy Treads > --- UTILITY ---------- Improved Cooling System Large Storage Unit Improved Targeting Computer Improved Target Analyzer Core Analyzer Core Analyzer Experimental Propulsion Shielding Centrium Medium Armor Plating > --- WEAPON ----------- Wave Gun Advanced Variable Charge Gun Advanced KE Penetrator > --- INVENTORY -------- Quantum Reactor Quantum Reactor Light Treads Light Treads Improved Treads Improved Treads Armored Wheel Advanced Heat Sink Improved Light Armor Plating Improved Medium Armor Plating Advanced Variable Charge Gun Neutron Cannon Neutron Cannon Advanced KE Penetrator [Rating: 112] Favorites ----------- Power Reinforced Ion Engine Engine Reinforced Ion Engine Power Core Neutrino Core Reactor Quantum Reactor Propulsion Light Treads Treads Light Treads Leg Carbon-fiber Leg Wheel Armored Wheel Utility Large Storage Unit Device Advanced Heat Sink Storage Large Storage Unit Processor Improved Targeting Computer Hackware Relay Coupler [NC] Protection Reflective Plating Weapon Heavy Gauss Cannon Energy Gun Wave Gun Energy Cannon Neutron Cannon Ballistic Gun KE Penetrator Ballistic Cannon Heavy Gauss Cannon Launcher Heavy Rocket Launcher Special Weapon Improved Remote Datajack Impact Weapon Heavy Flail Piercing Weapon Enhanced Force Lance Build | -11 -10 -10 -9 -8 -8 -8 -6 -6 -6 -6 -6 -6 -6 -5 -5 -5 -5 ------- Run | Yrd Mat Min Mat Mat Sto Rec Fac Gar Fac Ext Cet Arc Hub Fac Gar Fac Gar Slots Evolved 10 | . . . 2 2 . . 4 . . . . . . 2 . . . Power 1 | . . . . . . . 1 . . . . . . . . . . Propulsion 2 | . . . . 2 . . . . . . . . . . . . . Utility 6 | . . . 2 . . . 2 . . . . . . 2 . . . Weapon 1 | . . . . . . . 1 . . . . . . . . . . Parts Attached 155 | . 7 4 35 5 10 3 10 12 1 9 9 . . 1 29 5 15 Power 18 | . 1 . 5 . . . 1 1 . 1 2 . . . 5 1 1 Engine 5 | . . . 4 . . . . 1 . . . . . . . . . Core 7 | . 1 . 1 . . . 1 . . 1 . . . . 2 1 . Reactor 6 | . . . . . . . . . . . 2 . . . 3 . 1 Propulsion 44 | . 2 1 8 2 6 2 1 2 . 6 2 . . . 7 . 5 Treads 41 | . 2 1 8 2 4 2 1 2 . 6 2 . . . 7 . 4 Leg 1 | . . . . . . . . . . . . . . . . . 1 Wheel 2 | . . . . . 2 . . . . . . . . . . . . Hover . | . . . . . . . . . . . . . . . . . . Flight . | . . . . . . . . . . . . . . . . . . Utility 49 | . 2 . 12 1 2 . 6 2 1 1 1 . . 1 12 3 5 Device 20 | . 1 . 4 1 . . 2 1 1 . . . . . 6 1 3 Storage 1 | . 1 . . . . . . . . . . . . . . . . Processor 6 | . . . . . 1 . 2 . . . . . . 1 1 1 . Hackware 1 | . . . . . . . . . . . . . . . 1 . . Protection 21 | . . . 8 . 1 . 2 1 . 1 1 . . . 4 1 2 Artifact . | . . . . . . . . . . . . . . . . . . Weapon 44 | . 2 3 10 2 2 1 2 7 . 1 4 . . . 5 1 4 Energy Gun 15 | . 1 1 5 . . . 1 3 . . 2 . . . 2 . . Energy Cannon 4 | . . . 1 . . . 1 . . . 1 . . . . . 1 Ballistic Gun 9 | . . . 2 . 1 . . . . . 1 . . . 3 1 1 Ballistic Cannon 10 | . 1 1 . 2 1 1 . 3 . 1 . . . . . . . Launcher 2 | . . 1 . . . . . 1 . . . . . . . . . Special Weapon 1 | . . . . . . . . . . . . . . . . . 1 Impact Weapon 2 | . . . 2 . . . . . . . . . . . . . . Slashing Weapon . | . . . . . . . . . . . . . . . . . . Piercing Weapon 1 | . . . . . . . . . . . . . . . . . 1 Special Melee Weapon . | . . . . . . . . . . . . . . . . . . Unidentified Prototypes 11 | . . . 4 . . . 2 . . . 5 . . . . . . Corrupted Parts 1 | . . . . . . . . . . . 1 . . . . . . System Corruption 9 | . . . . . . . . . . . 9 . . . . . . Parts Lost 79 | . . 1 12 . 6 . 1 5 . 7 1 . 2 . 12 11 21 Power 9 | . . . 2 . . . . . . 1 . . 1 . 1 3 1 Propulsion 22 | . . . 2 . 4 . . 3 . 3 . . . . 2 2 6 Utility 31 | . . . 5 . 2 . 1 1 . 2 . . 1 . 6 4 9 Weapon 17 | . . 1 3 . . . . 1 . 1 1 . . . 3 2 5 Highest Loss Streak 17 | . . 1 7 . 6 . 1 3 . 5 1 . 2 . 4 6 17 To Critical Strikes 2 | . . . . . . . . . . . 1 . . . 1 . . Average Backups 13 | . 6 9 13 12 11 13 14 12 14 13 14 15 15 13 13 14 10 Power 1 | . 1 1 1 . 1 2 2 2 2 2 1 2 2 2 1 2 . Propulsion 2 | . 2 2 4 2 1 3 4 1 . 1 3 3 3 3 4 3 . Utility 3 | . . 2 2 4 4 4 4 3 5 4 4 4 4 2 2 2 3 Weapon 5 | . 2 3 5 5 4 4 4 4 7 6 5 6 6 6 4 6 4 Tool/Special . | . . . . . . . . . . . . . . . . . . Unused Backups 36 | . 7 . 12 . 1 . 3 . . . 2 . . . 1 . 10 Power 7 | . 1 . 1 . 1 . 1 . . . 2 . . . . . 1 Propulsion 4 | . 2 . 2 . . . . . . . . . . . . . . Utility 11 | . 1 . 1 . . . 2 . . . . . . . 1 . 6 Weapon 13 | . 3 . 8 . . . . . . . . . . . . . 2 Tool/Special 1 | . . . . . . . . . . . . . . . . . 1 Average Slot Usage (%) 91 | . 93 100 98 97 94 95 89 89 86 91 88 80 79 68 87 91 70 Engine 5 | . 7 . 10 9 9 9 6 8 13 10 . . . . . . . Core 3 | . 6 14 . . . . 4 3 . 2 4 . . . 4 4 . Reactor 1 | . . . . . . . . . . . 6 13 13 5 4 4 4 Treads 20 | . 27 28 21 35 22 32 26 16 6 17 18 13 13 11 13 15 11 Wheel 2 | . . . . . 9 3 . 6 13 7 . . . . . . . Device 12 | . 7 14 21 18 12 9 12 12 13 9 6 6 6 5 12 11 9 Storage 7 | . 14 14 11 9 9 9 6 6 6 6 6 6 6 5 5 5 4 Processor 10 | . . . . . 5 9 12 13 13 13 13 13 13 17 19 16 15 Protection 6 | . . . 10 9 9 9 6 5 6 6 12 13 12 9 6 4 3 Energy Gun 4 | . 5 4 8 . . . 5 5 . . . . . . 10 5 6 Ballistic Gun 4 | . 19 . 8 1 3 4 . . . . 2 6 6 5 4 10 4 Ballistic Cannon 6 | . 3 23 . 15 13 9 6 7 13 16 13 6 6 5 . . . Peak Build Rating 112 | . 10 11 21 25 28 29 50 58 51 58 105 98 98 95 112 91 78 Average Rating 49 | . 7 10 18 23 25 26 44 50 50 53 85 98 97 94 94 87 58 On Entrance 47 | 6 6 10 11 21 25 27 26 50 51 50 56 98 98 86 95 91 54 Naked Turns . | . . . . . . . . . . . . . . . . . . Heaviest Build 95 | 10 31 32 45 46 46 47 60 74 75 87 95 86 86 64 79 79 66 Greatest Support 160 | 20 40 40 40 80 80 84 90 90 24 90 160 160 160 160 160 116 116 Greatest Overweight (x) 7 | . . . 1 . 1 . . 3 3 7 . . . . . . 6 Average Overweight (x) . | . . . . . . . . 1 3 2 . . . . . . . Largest Inventory Capacity 15 | . 15 15 15 15 15 15 15 15 15 15 15 15 15 15 15 15 15 Average Capacity 14 | . 9 15 15 15 15 15 15 15 15 15 15 15 15 15 15 15 13 Most Carried 15 | . 9 12 15 14 15 15 15 14 14 15 15 15 15 14 15 15 15 Average Carried 13 | . 6 9 13 12 11 13 14 12 14 13 14 15 15 13 13 14 10 Final Capacity 15 | 8 15 15 15 15 15 15 15 15 15 15 15 15 15 15 15 15 5 Final Carried 15 | 6 9 12 15 14 12 15 14 14 14 14 15 15 15 13 15 12 4 Class Distribution -------------------- 33% | Scavenger-Mutant 27% | Scavenger-Gunner 17% | Mutant 9% | Commander-Mutant 4% | Scavenger-Skirmisher 3% | Scavenger-Tank Dominant Class ---------------- Mutant | -10/Materials Mutant | -10/Mines Scavenger-Mutant | -9/Materials Scavenger-Mutant | -8/Materials Mutant | -8/Storage Commander-Mutant | -8/Recycling Scavenger-Skirmisher | -6/Factory Scavenger-Gunner | -6/Garrison Scavenger-Mutant | -6/Factory Scavenger-Gunner | -6/Extension Scavenger-Mutant | -6/Cetus Scavenger-Mutant | -6/Archives Scavenger-Mutant | -6/Hub_04(d) Scavenger-Mutant | -5/Factory Scavenger-Gunner | -5/Garrison Scavenger-Gunner | -5/Factory Scavenger-Gunner | -5/Garrison Resources | -11 -10 -10 -9 -8 -8 -8 -6 -6 -6 -6 -6 -6 -6 -5 -5 -5 -5 ----------- Run | Yrd Mat Min Mat Mat Sto Rec Fac Gar Fac Ext Cet Arc Hub Fac Gar Fac Gar Matter Collected 5825 | 200 123 147 616 120 480 200 208 602 105 940 412 32 147 . 674 526 293 Remotely . | . . . . . . . . . . . . . . . . . . Salvage Created 9296 | . 249 130 1385 177 591 399 411 618 . 669 205 . 256 . 2041 1414 751 Parts 477 | . 17 14 71 12 48 18 29 36 . 36 5 . 12 . 71 61 47 Haulers Intercepted 5 | . . . 2 . . . 1 . . . . . . . . 2 . Recyclers Shooed 11 | . 2 1 . . 4 2 . . . . . . 1 . . 1 . Parts Field Recycled . | . . . . . . . . . . . . . . . . . . Retrieved Matter . | . . . . . . . . . . . . . . . . . . Parts Self-Destructed . | . . . . . . . . . . . . . . . . . . Prevented . | . . . . . . . . . . . . . . . . . . Kills | -11 -10 -10 -9 -8 -8 -8 -6 -6 -6 -6 -6 -6 -6 -5 -5 -5 -5 ------- Run | Yrd Mat Min Mat Mat Sto Rec Fac Gar Fac Ext Cet Arc Hub Fac Gar Fac Gar Combat Hostiles Destroyed 196 | . 3 8 37 4 15 4 6 19 . 18 5 . 3 . 35 22 17 Melee 7 | . . . 4 . . . . . . . . . . . 1 . 2 Guns 106 | . 3 2 26 . 1 . 1 6 . . . . 1 . 33 22 11 Cannons 59 | . . 3 . 4 8 4 5 8 . 16 5 . 2 . . . 4 AOE 16 | . . 3 . . 6 . . 5 . 2 . . . . . . . Classes Destroyed 18 | . 4 2 5 . 2 . 2 2 . 1 . . . . . . . Worker 8 | . 1 . 2 . 2 . 1 . . . . . . . . 2 . Builder 3 | . . . 1 . 1 . . . . 1 . . . . . . . Tunneler 1 | . . 1 . . . . . . . . . . . . . . . Hauler 5 | . . . 2 . . . 1 . . . . . . . . 2 . Recycler 8 | . 2 . . . 2 3 . . . . . . 1 . . . . Mechanic 1 | . . . . . 1 . . . . . . . . . . . . Watcher 13 | . 1 . 4 1 . . 1 . . 2 2 . 1 . . 1 . Swarmer 47 | . . 6 9 . 3 . . 6 . 1 . . . . 4 10 8 Cutter 3 | . . . . . . . . 3 . . . . . . . . . Saboteur 2 | . . . . . . . . 1 . . . . . . 1 . . Grunt 65 | . 3 2 15 3 6 1 . 5 . 6 1 . 1 . 17 2 3 Brawler 7 | . . . 1 . 1 . . 1 . . . . . . 1 3 . Duelist 9 | . . . 2 . 1 . . 1 . . . . . . 4 1 . Protector 1 | . . . . . 1 . . . . . . . . . . . . Sentry 38 | . . . 10 1 3 3 2 1 . 5 . . 2 . 7 2 2 Hunter 3 | . . . . . . . 1 . . 2 . . . . . . . Programmer 13 | . . . . . . . 3 1 . 1 . . . . 1 4 3 Behemoth 2 | . . . . . . . . . . 1 . . . . . . 1 Cetus Guard 4 | . . . . . . . . . . . 4 . . . . . . Savage 1 | . . . . . . . . . . 1 . . . . . . . Guerrilla 2 | . . . . . . . . 1 . 1 . . . . . . . Best Kill Streak 11 | . 2 4 7 4 11 3 2 4 . 3 3 . 2 . 10 5 7 Combat Bots Only 10 | . 1 3 6 4 6 1 1 4 . 3 2 . 1 . 10 5 7 Max Kills in Single Turn 4 | . 1 3 2 1 4 1 1 3 . 2 2 . 1 . 2 2 1 Gunslinging 1 | . . . 1 . . . . . . . . . . . 1 1 . Exploded 3 | . . 2 . . 3 . . 2 . 2 . . . . . . . Melee 1 | . . . 1 . . . . . . . . . . . 1 . 1 Uniques/NPCs Destroyed . | . . . . . . . . . . . . . . . . . . Combat | -11 -10 -10 -9 -8 -8 -8 -6 -6 -6 -6 -6 -6 -6 -5 -5 -5 -5 -------- Run | Yrd Mat Min Mat Mat Sto Rec Fac Gar Fac Ext Cet Arc Hub Fac Gar Fac Gar Hostile Shots Fired 1338 | . 18 44 247 10 103 8 65 55 7 182 30 4 50 . 209 113 193 Missed 381 | . 6 17 67 1 18 5 21 18 3 74 7 1 18 . 46 25 54 Hits 957 | . 12 27 180 9 85 3 44 37 4 108 23 3 32 . 163 88 139 Melee 42 | . . . 5 . 1 . . 10 . . . . . . 20 6 . Projectile 915 | . 12 27 175 9 84 3 44 27 4 108 23 3 32 . 143 82 139 AOE 2 | . . . . . . . . 2 . . . . . . . . . Critical Strikes 44 | . . . 2 . 4 . 2 7 . 2 3 . . . 14 8 2 Actively Blocked 1 | . . . . . . . . . . . . . . . 1 . . Part Disruptions 2 | . . . . . . . 1 . . . . . 1 . . . . Damage Taken 16059 | . 156 287 2205 126 1262 36 636 774 60 1453 542 94 322 . 3693 1780 2633 Core 1836 | . 12 70 278 31 120 . 44 88 . 106 29 28 23 . 278 180 549 Absorbed by Shields 226 | . . . . . . . . . . 74 152 . . . . . . Reduced by Siege Mode 132 | . . . . . . . . . . . . . . . 132 . . Redirected to Shielding 166 | . . . 5 . . . . . . . . . . . 161 . . Ignored by Resistances 215 | . . . . 18 154 6 15 22 . . . . . . . . . Regen/Repaired (Parts) 24 | . . . 24 . . . . . . . . . . . . . . Core Remaining (%) 66 | 100 . 67 30 . . 72 . . . . . . 62 . . . . Volleys Fired 558 | . 21 21 93 7 43 14 24 44 3 44 16 3 10 . 115 53 47 Largest 3 | . 2 2 2 2 2 2 2 3 2 3 3 2 2 . 3 3 3 Hottest 336 | . 60 70 130 74 74 62 130 242 102 153 153 86 86 . 336 149 203 Shots Fired 1195 | . 42 32 166 14 83 27 40 85 6 114 46 7 21 . 263 151 98 Gun 806 | . 42 12 166 . 10 13 15 42 . . 6 4 10 . 262 151 73 Cannon 380 | . . 18 . 14 70 14 25 40 6 113 40 3 11 . 1 . 25 Launcher 9 | . . 2 . . 3 . . 3 . 1 . . . . . . . Special . | . . . . . . . . . . . . . . . . . . Kinetic 723 | . 40 18 75 14 80 27 24 43 6 113 46 7 21 . 80 105 24 Thermal 449 | . . . 91 . . . 16 39 . . . . . . 183 46 74 Explosive 9 | . . 2 . . 3 . . 3 . 1 . . . . . . . Electromagnetic 14 | . 2 12 . . . . . . . . . . . . . . . Robot Hit Streak 20 | . 9 6 13 6 11 8 7 13 1 10 6 4 8 . 20 9 9 Robot Miss Streak 9 | . 3 4 9 1 5 2 5 2 1 4 1 3 1 . 4 4 4 Penetration Max 1 | . . . . . . . . . . 1 1 . 1 . 1 1 . Secondary Targets 20 | . . . 5 . . . . . . . . . . . 10 4 1 Max Gunslinging Chain 2 | . . . 1 . . . . . . . . . . . 2 1 1 Shots Hit Robots 800 | . 29 18 163 9 50 22 23 40 3 65 34 3 16 . 164 89 72 Core Hits 425 | . 13 12 106 7 31 8 9 26 1 36 18 1 9 . 74 43 31 Critical Kills 11 | . 2 . 1 . . . . 1 . . . . 1 . 2 3 1 Critical Parts Destroyed 26 | . . . 4 . . . 1 1 . . 1 . 2 . 9 7 1 Critical Strikes 73 | . 2 . 6 1 2 1 1 6 2 5 9 2 4 . 19 10 3 Burn 9 | . . . 1 . . . . . . . . . . . 8 . . Destroy 33 | . 2 . . . . . 1 2 . . 1 1 3 . 11 10 2 Blast 25 | . . . . 1 2 1 . 4 2 5 8 1 1 . . . . Smash 5 | . . . 5 . . . . . . . . . . . . . . Impale 1 | . . . . . . . . . . . . . . . . . 1 Melee Attacks 54 | . . . 46 . . . . . . . . . . . . . 8 Impact 46 | . . . 46 . . . . . . . . . . . . . . Slashing . | . . . . . . . . . . . . . . . . . . Piercing 8 | . . . . . . . . . . . . . . . . . 8 Sneak Attacks 2 | . . . 2 . . . . . . . . . . . . . . Combat Hostiles . | . . . . . . . . . . . . . . . . . . Follow-up Attacks 3 | . . . 3 . . . . . . . . . . . . . . Damage Inflicted 24176 | . 271 526 3287 240 1877 525 1007 1777 139 2739 1354 122 572 . 5068 2491 2181 Guns 12464 | . 256 53 1976 . 87 176 221 501 . . 178 82 255 . 4890 2478 1311 Cannons 8405 | . . 234 . 240 1148 283 786 817 139 2474 1176 30 317 . . . 761 Explosions 1844 | . . 239 61 . 642 . . 459 . 265 . . . . 178 . . Melee 1359 | . . . 1250 . . . . . . . . . . . . . 109 Ramming 104 | . 15 . . . . 66 . . . . . 10 . . . 13 . Kinetic 13445 | . 243 234 920 240 1235 459 786 872 139 2474 1354 112 572 . 1681 1736 388 Thermal 7386 | . . 28 1056 . . . 221 446 . . . . . . 3209 742 1684 Explosive 1816 | . . 211 61 . 642 . . 459 . 265 . . . . 178 . . Electromagnetic 66 | . 13 53 . . . . . . . . . . . . . . . Impact 1250 | . . . 1250 . . . . . . . . . . . . . . Slashing . | . . . . . . . . . . . . . . . . . . Piercing 109 | . . . . . . . . . . . . . . . . . 109 Highest Corruption 21 | . 2 2 . . . . 4 5 5 5 14 14 15 . 3 17 21 Average Corruption 5 | . 2 2 . . . . 2 4 5 5 5 14 14 . 1 6 20 Corruption Purged . | . . . . . . . . . . . . . . . . . . Corruption Blocked . | . . . . . . . . . . . . . . . . . . Effects 217 | . 7 16 . . . . 9 26 6 35 12 8 7 . 13 42 36 Message Errors 52 | . 1 4 . . . . 2 5 2 9 4 2 1 . 4 9 9 Matter Fused 45 | . 3 4 . . . . 2 6 2 7 2 . . . 4 10 5 Heat Flow Errors 31 | . 2 4 . . . . 2 1 1 6 2 2 . . 1 5 5 Energy Discharges 28 | . 1 1 . . . . 1 5 . 6 2 . 3 . . 5 4 Parts Rejected 2 | . . . . . . . . . . . . . 1 . . 1 . Parts Fused 1 | . . . . . . . . 1 . . . . . . . . . Data Loss (minor) 25 | . . 1 . . . . 1 6 1 4 . 2 1 . 2 3 4 Data Loss (major) 9 | . . . . . . . 1 1 . . 2 . . . 1 2 2 Misfires 7 | . . . . . . . . . . 1 . 1 1 . . 3 1 Alerts 9 | . . 1 . . . . . 1 . 2 . 1 . . 1 2 1 Weapon Failures 8 | . . 1 . . . . . . . . . . . . . 2 5 Overload Shots 15 | . . . . . . . . . . . . . . . 15 . . Effects 1 | . . . . . . . . . . . . . . . 1 . . Energy Bleed 1 | . . . . . . . . . . . . . . . 1 . . Overflow Damage 777 | . . 45 407 . 60 15 78 87 . 70 . . 3 . . . 12 Projectiles 214 | . . . 5 . 16 15 78 38 . 47 . . 3 . . . 12 Explosions 189 | . . 45 28 . 44 . . 49 . 23 . . . . . . . Melee 374 | . . . 374 . . . . . . . . . . . . . . Knockbacks 61 | . . 3 9 1 18 4 5 1 3 14 . . 3 . . . . Impact 10 | . . . 8 . . 2 . . . . . . . . . . . Kinetic 45 | . . 2 . 1 16 2 5 1 2 13 . . 3 . . . . Secondary 6 | . . 1 1 . 2 . . . 1 1 . . . . . . . Self-Inflicted Damage 317 | . . . 98 . 61 . . 63 . . . . . . 95 . . Shots 5 | . . . 1 . 2 . . 1 . . . . . . 1 . . Rammed 14 | . 2 . . . . 10 . . . . . 1 . . . 1 . Targets Rammed 15 | . 3 . . . . 10 . . . . . 1 . . . 1 . Kicked . | . . . . . . . . . . . . . . . . . . Crushed 1 | . 1 . . . . . . . . . . . . . . . . Highest Temperature 450 | . 185 236 123 . 84 7 281 226 224 255 179 159 5 . 448 284 450 Average Temperature 72 | . 53 75 29 . 38 6 45 47 131 40 24 72 5 . 114 116 109 Received Heat Transfer 3880 | . 90 96 543 81 765 27 48 117 18 368 35 9 75 . 966 135 507 Effects 7 | . . . . . . . 1 . . . . . . . 4 1 1 Shutdowns 1 | . . . . . . . . . . . . . . . 1 . . Energy Bleed 2 | . . . . . . . . . . . . . . . . 1 1 Interference 4 | . . . . . . . 1 . . . . . . . 3 . . Siege Activations 1 | . . . . . . . . . . . . . . . 1 . . Total Turns 51 | . . . . . . . . . . . . . . . 51 . . Longest Duration 51 | . . . . . . . . . . . . . . . 51 . . Martial Activations . | . . . . . . . . . . . . . . . . . . Shielding Activations . | . . . . . . . . . . . . . . . . . . Robots Disrupted . | . . . . . . . . . . . . . . . . . . Combat Hostiles . | . . . . . . . . . . . . . . . . . . Robots Corrupted 7 | . . . 7 . . . . . . . . . . . . . . Combat Hostiles 7 | . . . 7 . . . . . . . . . . . . . . Parts Fried 9 | . . . 9 . . . . . . . . . . . . . . Impact Corruptions 14 | . . . 14 . . . . . . . . . . . . . . Robots Melted 1 | . . . . . . . . . . . . . . . 1 . . Combat Hostiles 1 | . . . . . . . . . . . . . . . 1 . . Parts Melted 27 | . . . 3 . . . 2 3 . . . . . . 12 2 5 Heat Transferred 9842 | . . 50 1655 . . . 333 666 . . . . . . 4918 1073 1147 Parts Sabotaged 9 | . . . . . . . . 3 . . . . . . 6 . . Parts Stolen . | . . . . . . . . . . . . . . . . . . Parts Stripped . | . . . . . . . . . . . . . . . . . . Power Chain Reactions 1 | . . 1 . . . . . . . . . . . . . . . Alert | -11 -10 -10 -9 -8 -8 -8 -6 -6 -6 -6 -6 -6 -6 -5 -5 -5 -5 ------- Run | Yrd Mat Min Mat Mat Sto Rec Fac Gar Fac Ext Cet Arc Hub Fac Gar Fac Gar Maximum Alert Level 4 | . . . 2 1 2 . 1 4 3 3 3 2 1 . 4 3 3 Low Security (%) 38 | . 100 100 48 . 20 100 87 14 . . . . 66 100 8 . . Level 1 20 | . . . 29 100 63 . 12 11 . 53 . 77 33 . 15 33 . Level 2 27 | . . . 21 . 16 . . 21 45 31 93 22 . . 31 64 90 Level 3 11 | . . . . . . . . 49 54 15 6 . . . 34 1 9 Level 4 1 | . . . . . . . . 2 . . . . . . 9 . . Level 5 . | . . . . . . . . . . . . . . . . . . High Security . | . . . . . . . . . . . . . . . . . . Max Security . | . . . . . . . . . . . . . . . . . . Peak Influence 1338 | . 52 85 625 322 444 189 250 1211 912 875 712 429 353 148 1338 702 735 Initial 702 | . . . . 253 131 169 250 32 635 427 479 249 119 148 96 702 460 Average 361 | . 9 20 239 270 294 45 83 676 734 460 604 371 188 142 657 480 610 Influence Increases 9819 | . 111 223 1220 109 611 271 593 1269 467 1275 473 191 414 . 1402 738 452 Destroy 0b10 Robot/C 5260 | . 60 160 740 80 400 80 160 680 200 700 220 80 160 . 760 440 340 Destroy 0b10 Robot/NC 245 | . 20 5 45 5 35 15 15 . 20 40 10 . 10 . . 25 . Destroy Leader 834 | . 12 30 202 22 100 . 64 30 52 86 10 . 62 . 30 114 20 Allied During Kill 1103 | . . . . . 26 10 32 151 137 331 201 80 123 . 12 . . Successful Hack 94 | . 4 . . . . 13 28 14 . 7 . . 14 . 14 . . Select Force Hacks 150 | . . . . . . 150 . . . . . . . . . . . Disable Machine 315 | . . 15 60 . 15 . 30 15 30 15 15 30 . . . 75 15 Anti-Garrison Action 650 | . . . . . . . . 250 . . . . . . 350 . 50 Destroy Structure 513 | . . 13 23 2 35 3 14 99 28 66 17 1 15 . 161 24 12 Advance Influence 250 | . . . . . . . 250 . . . . . . . . . . Lose Combat Pursuer 405 | . 15 . 150 . . . . 30 . 30 . . 30 . 75 60 15 Influence Decreases 9117 | . 111 223 619 398 487 707 546 105 806 1291 705 475 451 165 202 1418 408 Entered New Map 3836 | . . . . 348 181 267 . 15 576 445 377 375 221 155 42 636 198 Time Decay 3491 | . 111 213 499 50 206 440 376 . 150 486 238 100 90 10 . 522 . Lost Part 790 | . . 10 120 . 60 . 10 50 . 70 10 . 20 . 120 110 210 Lost Ally 700 | . . . . . 40 . 160 40 80 140 80 . 120 . 40 . . Purge Threat 300 | . . . . . . . . . . 150 . . . . . 150 . Squads Dispatched 24 | . . . 3 1 4 . 3 . 2 4 1 . 2 . . 4 . Investigation 7 | . . . 2 1 . . 1 . . 2 1 . . . . . . Extermination 5 | . . . . . . . 2 . 1 . . . . . . 2 . Reinforcement 7 | . . . 1 . 1 . . . 1 2 . . 2 . . . . Assault 4 | . . . . . 3 . . . . . . . . . . 1 . Garrison 1 | . . . . . . . . . . . . . . . . 1 . Intercept . | . . . . . . . . . . . . . . . . . . Searches Triggered . | . . . . . . . . . . . . . . . . . . Construction Impeded 2 | . . . . . 1 . . . . 1 . . . . . . . Haulers Reinforced . | . . . . . . . . . . . . . . . . . . Active Scanning Responses . | . . . . . . . . . . . . . . . . . . Cargo Convoy Interrupts . | . . . . . . . . . . . . . . . . . . Stealth | -11 -10 -10 -9 -8 -8 -8 -6 -6 -6 -6 -6 -6 -6 -5 -5 -5 -5 --------- Run | Yrd Mat Min Mat Mat Sto Rec Fac Gar Fac Ext Cet Arc Hub Fac Gar Fac Gar Distress Signals 15 | . 3 . 2 . 1 . . . 2 3 2 . 2 . . . . Communications Jammed . | . . . . . . . . . . . . . . . . . . Distress Signals . | . . . . . . . . . . . . . . . . . . Times Spotted 312 | . 7 9 56 5 26 3 8 30 8 35 12 7 12 . 41 29 24 Peak Tracking Total 14 | . 4 3 8 4 8 1 2 7 3 5 5 2 6 . 14 5 8 Tactical Retreats 22 | . 1 . 8 . . . . 2 . 2 . . 2 . 3 3 1 Traps | -11 -10 -10 -9 -8 -8 -8 -6 -6 -6 -6 -6 -6 -6 -5 -5 -5 -5 ------- Run | Yrd Mat Min Mat Mat Sto Rec Fac Gar Fac Ext Cet Arc Hub Fac Gar Fac Gar Traps Triggered 13 | . 1 . 3 1 1 . 1 2 . . . . . . 1 2 1 Indirectly . | . . . . . . . . . . . . . . . . . . Trap Hack Attempts . | . . . . . . . . . . . . . . . . . . Triggered . | . . . . . . . . . . . . . . . . . . Disarmed . | . . . . . . . . . . . . . . . . . . Reprogrammed . | . . . . . . . . . . . . . . . . . . Reused . | . . . . . . . . . . . . . . . . . . Traps Extracted . | . . . . . . . . . . . . . . . . . . Installed 3 | . . 3 . . . . . . . . . . . . . . . Triggered . | . . . . . . . . . . . . . . . . . . Most Traps Carried 3 | . . 3 . . . . . . . . . . . . . . . Machines | -11 -10 -10 -9 -8 -8 -8 -6 -6 -6 -6 -6 -6 -6 -5 -5 -5 -5 ---------- Run | Yrd Mat Min Mat Mat Sto Rec Fac Gar Fac Ext Cet Arc Hub Fac Gar Fac Gar Machines Disabled 30 | . . 1 4 . 1 . 2 2 2 2 4 2 . . 3 5 2 Max in Single Turn 3 | . . 1 3 . 1 . 1 1 . 1 1 1 . . 2 2 1 Garrison Access 2 | . . . . . 1 . 1 . . . . . . . . . . Garrison Relay 4 | . . . . . . . . 2 . . . . . . 1 . 1 Phase Generator 1 | . . . . . . . . . . . . . . . 1 . . Energy Cycler 1 | . . . . . . . . . . 1 . . . . . . . Machines Repaired . | . . . . . . . . . . . . . . . . . . Machines Dismantled . | . . . . . . . . . . . . . . . . . . Machines Sabotaged . | . . . . . . . . . . . . . . . . . . Overloaded Fab Kills . | . . . . . . . . . . . . . . . . . . Hacking | -11 -10 -10 -9 -8 -8 -8 -6 -6 -6 -6 -6 -6 -6 -5 -5 -5 -5 --------- Run | Yrd Mat Min Mat Mat Sto Rec Fac Gar Fac Ext Cet Arc Hub Fac Gar Fac Gar Machines Accessed 47 | . 1 . 7 . 2 10 6 2 . 5 3 1 1 1 3 5 . Terminals 33 | . 1 . 6 . 1 5 2 2 . 5 3 . 1 . 3 4 . Fabricators 1 | . . . . . . . 1 . . . . . . . . . . Repair Stations 1 | . . . 1 . . . . . . . . . . . . . . Recycling Units 5 | . . . . . . 5 . . . . . . . . . . . Scanalyzers . | . . . . . . . . . . . . . . . . . . Garrison Access 6 | . . . . . 1 . 3 . . . . . . 1 . 1 . Total Hacks 90 | . 1 . 15 . 4 14 14 5 . 10 5 4 3 1 6 8 . Successful 39 | . 1 . 8 . 1 11 4 1 . 3 . 4 1 1 2 2 . Failed 51 | . . . 7 . 3 3 10 4 . 7 5 . 2 . 4 6 . Catastrophic 12 | . . . 2 . . . 2 . . 2 3 . 1 . 1 1 . Database Lockouts . | . . . . . . . . . . . . . . . . . . Manual 32 | . . . 6 . 1 14 . . . 4 1 . . . . 6 . Terminals 64 | . 1 . 14 . 2 9 2 5 . 10 5 . 3 . 6 7 . Fabricators 3 | . . . . . . . 3 . . . . . . . . . . Repair Stations 1 | . . . 1 . . . . . . . . . . . . . . Recycling Units 5 | . . . . . . 5 . . . . . . . . . . . Scanalyzers . | . . . . . . . . . . . . . . . . . . Garrison Access 13 | . . . . . 2 . 9 . . . . . . 1 . 1 . Terminal Hacks 21 | . 1 . 6 . . 1 1 1 . 3 . 4 1 . 2 1 . Record 4 | . . . . . . . . . . . . 4 . . . . . Prototype ID Bank 1 | . . . 1 . . . . . . . . . . . . . . Open Door 2 | . . . . . . . . . . 2 . . . . . . . Emergency Access Points 2 | . . . . . . . . 1 . . . . . . 1 . . Terminal Index 2 | . . . . . . 1 1 . . . . . . . . . . Alert Level 1 | . . . 1 . . . . . . . . . . . . . . Unreport Threat 2 | . . . . . . . . . . 1 . . . . . 1 . Locate Traps 1 | . . . . . . . . . . . . . 1 . . . . Dispatch Records 2 | . 1 . 1 . . . . . . . . . . . . . . Maintenance Status 1 | . . . 1 . . . . . . . . . . . . . . Hauler Manifests 1 | . . . 1 . . . . . . . . . . . . . . Registered Components 1 | . . . 1 . . . . . . . . . . . . . . Garrison Registry 1 | . . . . . . . . . . . . . . . 1 . . Fabricator Hacks 1 | . . . . . . . 1 . . . . . . . . . . Build 1 | . . . . . . . 1 . . . . . . . . . . Repair Station Hacks . | . . . . . . . . . . . . . . . . . . Recycling Unit Hacks . | . . . . . . . . . . . . . . . . . . Scanalyzer . | . . . . . . . . . . . . . . . . . . Garrison Access Hacks 5 | . . . . . 1 . 2 . . . . . . 1 . 1 . Unlock Access 3 | . . . . . . . 1 . . . . . . 1 . 1 . Seal Access 2 | . . . . . 1 . 1 . . . . . . . . . . Unauthorized Hacks 12 | . . . 2 . . 10 . . . . . . . . . . . Terminals 6 | . . . 1 . . 5 . . . . . . . . . . . Track 1 | . . . 1 . . . . . . . . . . . . . . Skim 5 | . . . . . . 5 . . . . . . . . . . . Fabricators . | . . . . . . . . . . . . . . . . . . Repair Stations 1 | . . . 1 . . . . . . . . . . . . . . Patch 1 | . . . 1 . . . . . . . . . . . . . . Recycling Units 5 | . . . . . . 5 . . . . . . . . . . . Tunnel 5 | . . . . . . 5 . . . . . . . . . . . Scanalyzers . | . . . . . . . . . . . . . . . . . . Garrison Access . | . . . . . . . . . . . . . . . . . . Data Cores Recovered 1 | . . . . . . . . . . 1 . . . . . . . Used . | . . . . . . . . . . . . . . . . . . Hacking Detections 34 | . 1 . 5 . 1 1 6 2 . 5 4 . 1 . 3 5 . Full Trace Events 7 | . . . 1 . . . 1 2 . 1 1 . . . 1 . . Feedback Events . | . . . . . . . . . . . . . . . . . . Feedback Blocked . | . . . . . . . . . . . . . . . . . . Robot Schematics Acquired . | . . . . . . . . . . . . . . . . . . Robots Built 2 | . . . . . . . 2 . . . . . . . . . . Authchips . | . . . . . . . . . . . . . . . . . . Time 152 | . . . . . . . 152 . . . . . . . . . . Total Robot Build Rating 10 | . . . . . . . 10 . . . . . . . . . . Part Schematics Acquired . | . . . . . . . . . . . . . . . . . . Parts Built . | . . . . . . . . . . . . . . . . . . Authchips . | . . . . . . . . . . . . . . . . . . Time . | . . . . . . . . . . . . . . . . . . Total Part Build Rating . | . . . . . . . . . . . . . . . . . . Parts Repaired . | . . . . . . . . . . . . . . . . . . Time . | . . . . . . . . . . . . . . . . . . Parts Recycled . | . . . . . . . . . . . . . . . . . . Recycled Matter . | . . . . . . . . . . . . . . . . . . Retrieved Matter . | . . . . . . . . . . . . . . . . . . Retrieved Components . | . . . . . . . . . . . . . . . . . . Parts Scanalyzed . | . . . . . . . . . . . . . . . . . . Part Schematics Acquired . | . . . . . . . . . . . . . . . . . . Parts Damaged . | . . . . . . . . . . . . . . . . . . Bothacking | -11 -10 -10 -9 -8 -8 -8 -6 -6 -6 -6 -6 -6 -6 -5 -5 -5 -5 ------------ Run | Yrd Mat Min Mat Mat Sto Rec Fac Gar Fac Ext Cet Arc Hub Fac Gar Fac Gar Used RIF Installer 2 | . . . . . . . . 1 . . . . . . 1 . . Watcher Feeds 1 | . . . . . . . . . . . . . . . 1 . . Robots Hacked . | . . . . . . . . . . . . . . . . . . Non-combat . | . . . . . . . . . . . . . . . . . . Combat . | . . . . . . . . . . . . . . . . . . Robot Hacks Applied . | . . . . . . . . . . . . . . . . . . Relay Couplers Released 20 | . . . . . . . . 10 . . . . . . 5 . 5 Machine Destruction 20 | . . . . . . . . 10 . . . . . . 5 . 5 Attached 1 | . . . . . . . . . . . . . . . 1 . . Fabnet Peak Effective % . | . . . . . . . . . . . . . . . . . . Robots Rewired 27 | . . . . . . 8 . 9 . 10 . . . . . . . Allies Hacked 1 | . . . . . . . 1 . . . . . . . . . . Hacks Repelled . | . . . . . . . . . . . . . . . . . . Allies | -11 -10 -10 -9 -8 -8 -8 -6 -6 -6 -6 -6 -6 -6 -5 -5 -5 -5 -------- Run | Yrd Mat Min Mat Mat Sto Rec Fac Gar Fac Ext Cet Arc Hub Fac Gar Fac Gar Total Allies 44 | . . . . . 2 8 2 13 . 12 5 . . . 2 . . Largest Group 11 | . . . . . 2 8 10 11 10 9 11 8 6 . 2 . . Highest-Rated Group 783 | . . . . . 62 117 157 403 391 339 783 547 292 . 160 . . Highest-Rated Ally 159 | . . . . . 31 34 34 80 80 159 159 159 96 . 80 . . Total Orders . | . . . . . . . . . . . . . . . . . . Ally Attacks 391 | . . . . . 27 . 15 66 52 143 48 20 16 . 4 . . Total Damage 10303 | . . . . . 460 . 212 1319 1664 3641 1318 846 583 . 260 . . Kills 80 | . . . . . 6 . 2 15 16 23 6 4 5 . 3 . . Allies Corrupted 1 | . . . . . . . . 1 . . . . . . . . . Allies Melted . | . . . . . . . . . . . . . . . . . . Intel | -11 -10 -10 -9 -8 -8 -8 -6 -6 -6 -6 -6 -6 -6 -5 -5 -5 -5 ------- Run | Yrd Mat Min Mat Mat Sto Rec Fac Gar Fac Ext Cet Arc Hub Fac Gar Fac Gar Active Infowar (turns) 1000 | . . . . . . . 1000 . . . . . . . . . . Sensors 1000 | . . . . . . . 1000 . . . . . . . . . . Robot Analysis Total . | . . . . . . . . . . . . . . . . . . Derelict Logs Recovered 2 | . . 2 . . . . . . . . . . . . . . . Drone Launches . | . . . . . . . . . . . . . . . . . . Drone Recoveries . | . . . . . . . . . . . . . . . . . . Exploration | -11 -10 -10 -9 -8 -8 -8 -6 -6 -6 -6 -6 -6 -6 -5 -5 -5 -5 ------------- Run | Yrd Mat Min Mat Mat Sto Rec Fac Gar Fac Ext Cet Arc Hub Fac Gar Fac Gar Turns Passed 14923 | . 542 933 2450 115 429 1507 1128 1227 304 1260 505 203 189 39 1958 1456 678 Spaces Moved 7574 | 1 277 536 1077 53 199 777 635 671 211 680 238 115 99 23 947 806 229 Core 2 | . . . . . . . . . . . . . . . . . 2 Treads 6430 | . 277 536 1077 53 78 777 635 318 . 236 238 115 99 23 947 806 215 Legs 6 | 1 . . . . . . . . . . . . . . . . 5 Wheels 1136 | . . . . . 121 . . 353 211 444 . . . . . . 7 Hover . | . . . . . . . . . . . . . . . . . . Flight . | . . . . . . . . . . . . . . . . . . Fastest Speed 105 | 120 160 160 160 160 105 152 155 105 135 135 160 160 160 160 155 145 120 Average Speed 157 | 120 160 160 172 160 126 155 155 140 135 148 160 160 160 160 158 154 201 Slowest Speed 400 | 120 160 160 240 160 160 156 156 156 135 400 160 160 160 160 160 155 350 Overloaded Moves . | . . . . . . . . . . . . . . . . . . Propulsion Burnouts . | . . . . . . . . . . . . . . . . . . Robots Hopped . | . . . . . . . . . . . . . . . . . . Potential Cave-ins . | . . . . . . . . . . . . . . . . . . Cave-ins Triggered . | . . . . . . . . . . . . . . . . . . Exploration Rate (%) 47 | 2 42 96 90 9 32 95 19 81 10 87 69 80 19 1 85 25 18 Regions Visited 17 Branch Regions 7 Pre-discovered Areas 8 | . . . . . . 8 . . . . . . . . . . . Known Exits Taken 4 | . . . . . . . 1 . . . . . 1 1 . 1 . Unknown Exits Taken 11 | 1 1 1 1 1 1 1 . . 1 1 1 1 . . . . . Scrap Searched 1 | . . 1 . . . . . . . . . . . . . . . Spaces Dug 11 | . . . 1 . . . 2 . . . . . . . 8 . . Terrain Destroyed 325 | . . 20 22 2 34 3 8 19 3 61 10 1 5 . 110 20 7 Melee 1 | . . . 1 . . . . . . . . . . . . . . Projectile 159 | . . . . 2 12 3 8 13 3 54 10 1 5 . 21 20 7 AOE 165 | . . 20 21 . 22 . . 6 . 7 . . . . 89 . . Terrain Rammed . | . . . . . . . . . . . . . . . . . . Walls Destroyed . | . . . . . . . . . . . . . . . . . . Machines Disabled . | . . . . . . . . . . . . . . . . . . Actions | -11 -10 -10 -9 -8 -8 -8 -6 -6 -6 -6 -6 -6 -6 -5 -5 -5 -5 --------- Run | Yrd Mat Min Mat Mat Sto Rec Fac Gar Fac Ext Cet Arc Hub Fac Gar Fac Gar Total 9460 | . 341 580 1452 70 296 1050 720 871 224 836 330 128 109 25 1189 905 334 Wait 632 | . 20 2 140 . 31 154 38 64 9 4 45 10 . . 64 31 20 Move 7559 | . 276 535 1076 52 198 776 635 670 210 679 237 114 98 23 945 806 229 Hop . | . . . . . . . . . . . . . . . . . . Pick Up 103 | . 7 8 27 3 5 3 5 7 . 3 7 . . . 19 . 9 Fast Attach 84 | . 3 1 17 1 3 2 7 8 1 5 6 . 1 . 13 9 7 Attach 77 | . 2 1 15 4 6 . 2 10 . 4 2 . . 2 17 3 9 Detach 11 | . . . 4 . . 1 . 3 . 1 2 . . . . . . Swap 33 | . 2 3 8 . 6 1 1 3 . 2 2 . . . 4 . 1 Drop 99 | . 7 6 33 3 4 3 8 4 1 1 13 . . . 12 2 2 Fire 558 | . 21 21 93 7 43 14 24 44 3 44 16 3 10 . 115 53 47 Melee 47 | . . . 39 . . . . . . . . . . . . . 8 Ram . | . . . . . . . . . . . . . . . . . . Kick . | . . . . . . . . . . . . . . . . . . Crush 15 | . 3 . . . . 10 . . . . . 1 . . . 1 . Escape Stasis 10 | . . . . . . . . 8 . . . . . . . . 2 Rewire 229 | . . . . . . 86 . 50 . 93 . . . . . . . Trap 3 | . . 3 . . . . . . . . . . . . . . . Miscellaneous . | . . . . . . . . . . . . . . . . . . Route ------- -11/Scrapyard -10/Materials (discovered 2 exits: *Mat / [*Min]) -10/Mines (discovered 2 exits: *Mat x2) -9/Materials (discovered 4 exits: [*Mat x2] / *Min x2) -8/Materials -8/Storage -8/Recycling -6/Factory (discovered 4 exits: Fac / Low x2 / Gar) -6/Garrison (discovered 2 exits: [*Fac x2]) -6/Factory (discovered 2 exits: *Fac / *Ext) -6/Extension (discovered 2 exits: *Fac / *Cet) -6/Cetus (discovered 2 exits: *Fac / *Arc) -6/Archives (discovered 3 exits: *Fac / *Hub x2) -6/Hub_04(d) (discovered 2 exits: *Fac x2) -5/Factory -5/Garrison (discovered 3 exits: *Fac x3) -5/Factory -5/Garrison History --------- Turn | Location | Event 1 | -11/Scrapyard | Discovered new exit (range 0) 1 | -11/Scrapyard | Entered Materials 73 | -10/Materials | Discovered new exit (range 8) 343 | -10/Materials | Build established: Mutant 370 | -10/Materials | Discovered new exit (range 10) 543 | -10/Materials | Entered Mines 643 | -10/Mines | Discovered new exit (range 12) 712 | -10/Mines | Found a hidden stash of uninstalled traps 851 | -10/Mines | Learned 2 Materials zone layouts 904 | -10/Mines | Discovered new exit (range 9) 1080 | -10/Mines | Received a Rocket Launcher from a helpful Derelict 1312 | -10/Mines | Joined a pair of Derelicts in attacking an 0b10 outpost 1325 | -10/Mines | Learned Materials emergency access door positions 1476 | -10/Mines | Entered Materials 1476 | -9/Materials | Evolved 2 slots: Utility x2 1477 | -9/Materials | Identified exit to Mines 2306 | -9/Materials | Lost 7 parts (2n3u2w) 2558 | -9/Materials | Build established: Scavenger-Mutant 2772 | -9/Materials | Discovered new exit (range 6) 3141 | -9/Materials | Discovered exit to Mines (range 12) 3331 | -9/Materials | Discovered new exit (range 4) 3394 | -9/Materials | Core integrity fell below 50% 3572 | -9/Materials | Lost 3 parts (2p1u) 3926 | -9/Materials | Entered another Materials area 3926 | -8/Materials | Evolved 2 slots: Propulsion x2 4020 | -8/Materials | Discovered new exit (range 11) 4041 | -8/Materials | Entered Storage 4080 | -8/Storage | Met a pair of Derelict thieves 4249 | -8/Storage | Lost 6 parts (4n2u) 4441 | -8/Storage | First assault squad dispatched 4464 | -8/Storage | Used back door to open Recycling access 4464 | -8/Storage | Discovered new exit (range 5) 4470 | -8/Storage | Entered Recycling 5519 | -8/Recycling | Build established: Commander-Mutant 5595 | -8/Recycling | Discovered new exit (range 15) 5617 | -8/Recycling | Learned location of 2 exits from Lower Caves 5663 | -8/Recycling | Learned Storage interactive machine intel 5701 | -8/Recycling | Learned Factory trap positions 5731 | -8/Recycling | Learned Factory terminal intel 5751 | -8/Recycling | Learned 4 Lower Caves zone layouts 5762 | -8/Recycling | Learned location of Extension (-6) 5775 | -8/Recycling | Learned Storage emergency access door positions 5798 | -8/Recycling | Learned location of Storage (-8) 5829 | -8/Recycling | Learned location of 3 exits from Factory 5863 | -8/Recycling | Scanned before Scraplab entrance 5868 | -8/Recycling | Learned Factory non-interactive machine intel 5977 | -8/Recycling | Entered Factory 5977 | -6/Factory | Accompanied by 8 allies 5977 | -6/Factory | Evolved 4 slots: Power x1, Utility x2, Weapon x1 5978 | -6/Factory | Identified exit to Factory 5978 | -6/Factory | Identified exit to Lower Caves 5979 | -6/Factory | Loaded intel: 103 trap records 5980 | -6/Factory | Loaded intel: 236 non-interactive machine locations 5981 | -6/Factory | Loaded intel: 28 terminal locations 6277 | -6/Factory | Fabricated R-10 Processor? 6343 | -6/Factory | Lost 4 allies 6536 | -6/Factory | Lost 4 allies 6629 | -6/Factory | Build established: Scavenger-Skirmisher 7105 | -6/Factory | Identified exit to Garrison 7105 | -6/Factory | Entered Garrison 7276 | -6/Garrison | Garrison Relay disabled 7281 | -6/Garrison | Rescued a captive Derelict 7285 | -6/Garrison | Rescued a captive Derelict 7357 | -6/Garrison | Build established: Scavenger-Gunner 7413 | -6/Garrison | Triggered checkpoint 7499 | -6/Garrison | Triggered checkpoint 7535 | -6/Garrison | Triggered checkpoint 7661 | -6/Garrison | Triggered checkpoint 7705 | -6/Garrison | Triggered checkpoint 7720 | -6/Garrison | Triggered checkpoint 7720 | -6/Garrison | Garrison Relay disabled 7757 | -6/Garrison | Lost 3 parts (2n1u) 7803 | -6/Garrison | Discovered new exit (range 14) 8094 | -6/Garrison | Installed Relay Interface Framework 8201 | -6/Garrison | Found embedded Infiltrators 8226 | -6/Garrison | Discovered new exit (range 10) 8277 | -6/Garrison | Triggered checkpoint 8303 | -6/Garrison | Build established: Commander-Mutant 8332 | -6/Garrison | Entered Factory 8332 | -6/Factory | Accompanied by 10 allies 8499 | -6/Factory | Lost 4 allies 8587 | -6/Factory | Discovered exit to Factory (range 15) 8611 | -6/Factory | Discovered new exit (range 16) 8636 | -6/Factory | Entered Extension 8636 | -6/Extension | Accompanied by 4 allies 8785 | -6/Extension | Build established: Scavenger-Mutant 9016 | -6/Extension | Rescued a captive Derelict 9307 | -6/Extension | Spotted B-75 Beast 9324 | -6/Extension | Destroyed B-75 Beast 9350 | -6/Extension | Lost 5 parts (3n1u1w) 9360 | -6/Extension | Spotted B-75 Beast 9373 | -6/Extension | Allies destroyed B-75 Beast 9492 | -6/Extension | Rescued A7 9632 | -6/Extension | Energy Cycler disabled 9633 | -6/Extension | Rescued a captive Derelict 9636 | -6/Extension | Rescued a captive Derelict 9640 | -6/Extension | Rescued a captive Derelict 9670 | -6/Extension | Build established: Scavenger-Gunner 9880 | -6/Extension | Discovered exit to Factory (range 10) 9881 | -6/Extension | Discovered new exit (range 6) 9896 | -6/Extension | Entered Cetus 9896 | -6/Cetus | Accompanied by 7 allies (A7) 9901 | -6/Cetus | Acquired a Cetus Manufacturing Module code from A7 9917 | -6/Cetus | Spotted Cetus Guard 9917 | -6/Cetus | Spotted Cetus Guard 9925 | -6/Cetus | Spotted Cetus Guard 9927 | -6/Cetus | Spotted Cetus Guard 9927 | -6/Cetus | Destroyed Cetus Guard 9929 | -6/Cetus | Allies destroyed Cetus Guard 9933 | -6/Cetus | Allies destroyed Cetus Guard 9937 | -6/Cetus | Destroyed Cetus Guard 10019 | -6/Cetus | Started Cetus Manufacturing Module 10044 | -6/Cetus | Manufactured an Enhanced Grunt 10069 | -6/Cetus | Manufactured an Enhanced Grunt 10094 | -6/Cetus | Manufactured an Enhanced Grunt 10119 | -6/Cetus | Manufactured an Enhanced Grunt 10144 | -6/Cetus | Manufactured an Enhanced Grunt 10145 | -6/Cetus | Discovered new exit (range 16) 10178 | -6/Cetus | Spotted Cetus Guard 10179 | -6/Cetus | Spotted Cetus Guard 10180 | -6/Cetus | Allies destroyed Cetus Guard 10182 | -6/Cetus | Spotted Cetus Guard 10185 | -6/Cetus | Spotted Cetus Guard 10192 | -6/Cetus | Destroyed Cetus Guard 10196 | -6/Cetus | Allies destroyed Cetus Guard 10204 | -6/Cetus | Destroyed Cetus Guard 10210 | -6/Cetus | Discovered exit to Factory (range 15) 10218 | -6/Cetus | Met Revision 17 10221 | -6/Cetus | Lost 3 allies 10350 | -6/Cetus | System corruption reached 10% 10401 | -6/Cetus | Entered Archives 10401 | -6/Archives | Accompanied by 8 allies (A7) 10452 | -6/Archives | Unable to access archive contents 10455 | -6/Archives | Discovered new exit (range 16) 10468 | -6/Archives | Unable to access archive contents 10471 | -6/Archives | Discovered exit to Factory (range 16) 10484 | -6/Archives | Unable to access archive contents 10498 | -6/Archives | Unable to access archive contents 10523 | -6/Archives | Build established: Scavenger-Mutant 10575 | -6/Archives | Discovered new exit (range 13) 10604 | -6/Archives | Entered Hub_04(d) 10604 | -6/Hub_04(d) | Accompanied by 6 allies 10761 | -6/Hub_04(d) | Discovered exit to Factory (range 14) 10783 | -6/Hub_04(d) | Discovered exit to Factory (range 15) 10793 | -6/Hub_04(d) | Entered Factory 10793 | -5/Factory | Evolved 2 slots: Utility x2 10817 | -5/Factory | Lost 6 allies 10832 | -5/Factory | Identified exit to Garrison 10832 | -5/Factory | Entered Garrison 10886 | -5/Garrison | Triggered checkpoint 11273 | -5/Garrison | Triggered checkpoint 11383 | -5/Garrison | Discovered new exit (range 9) 11589 | -5/Garrison | Build established: Scavenger-Gunner 11600 | -5/Garrison | Triggered checkpoint 11622 | -5/Garrison | Triggered checkpoint 11772 | -5/Garrison | Triggered checkpoint 11855 | -5/Garrison | Found embedded Infiltrators 11899 | -5/Garrison | Discovered new exit (range 68) 11899 | -5/Garrison | Discovered new exit (range 60) 11899 | -5/Garrison | Discovered new exit (range 24) 11932 | -5/Garrison | Phase Generator disabled 12150 | -5/Garrison | Lost 4 parts (1p2n1u) 12165 | -5/Garrison | Destroyed 10 combat bots 12598 | -5/Garrison | Triggered checkpoint 12662 | -5/Garrison | Triggered checkpoint 12707 | -5/Garrison | Expanded RIF knowledge: Watcher Feeds 12726 | -5/Garrison | Garrison Relay disabled 12790 | -5/Garrison | Entered Factory 12976 | -5/Factory | Build established: Scavenger-Tank 13056 | -5/Factory | Spotted B-75 Beast 13284 | -5/Factory | Build established: Scavenger-Gunner 13932 | -5/Factory | System corruption reached 10% 13968 | -5/Factory | Lost 3 parts (1n2u) 13990 | -5/Factory | First assault squad dispatched 14204 | -5/Factory | Garrison activated, responded to threat 14246 | -5/Factory | Identified exit to Garrison 14246 | -5/Factory | Entered Garrison 14263 | -5/Garrison | Lost 6 parts (2p1n2u1w) 14408 | -5/Garrison | Triggered checkpoint 14486 | -5/Garrison | Lost 3 parts (1n1u1w) 14519 | -5/Garrison | Garrison Relay disabled 14758 | -5/Garrison | Spotted B-75 Beast 14793 | -5/Garrison | Destroyed B-75 Beast 14808 | -5/Garrison | Triggered checkpoint 14811 | -5/Garrison | Triggered checkpoint 14829 | -5/Garrison | Core integrity fell below 50% 14879 | -5/Garrison | Destroyed 7 combat bots 14913 | -5/Garrison | Core integrity fell below 20% 14924 | -5/Garrison | Destroyed by S-27 Virus with Autogun Last Messages --------------- 14866_ Adv. Variable Charge Gun destroyed. 14869_ Imp. Heat Sink destroyed. 14872_ Imp. Medium Armor Plating destroyed. 14874_ System corrupted: Energy discharge (-122). 14875_ Acquired Adv. Heat Sink. 14886_ Imp. Medium Treads destroyed. 14887_ Neutron Cannon destroyed. 14890_ Adv. Heat Sink destroyed. 14890_ Particle Reactor destroyed. 14891_ Acquired Carbon-fiber Leg. 14893_ Imp. Targeting Computer destroyed. 14895_ Acquired 5 matter. 14900_ S-27 Virus suffers critical hit (Impale). 14900_ S-27 Virus destroyed. 14902_ Carbon-fiber Leg destroyed. 14906_ GQWGFU1AEMPHR29S<2/RLRXUA8E>MNY> 14907_ S-27 Virus destroyed. 14919_ Acquired 5 matter. 14924_ System corrupted: Heat flow error (+287). Map ----- +----------------------------------------------------+ | ?????????????????????????????????????????????????? | | ?????????????????????????????????????????????????? | | ?????????????????????????????????????????????????? | | ?????????????????????????????????????????????????? | | ?????????????????????????????????????????????????? | | ?????????????????????????????????????????????????? | | ?????????????????????????????????????????????????? | | ?????????????????????????????????????????????????? | | ?????????????????????????????????##??????????????? | | ????????????????????????????????? ??????????????? | | ???????????????????????????????##+###???"## ?????? | | ??????????????????????????????? ??? ????? | | ??????????????????????????????? ??? = ?????? | | ??????????????????????????????? ?? *% ??????? | | ???????????????????????????????# #? #??? ???? | | ?????????????????????????????### ## ## ???? | | ?????????????????????????????# ??? | | ?????????????????????????????# ??? | | ?????????????????????????????# ???? | | ?????????????????????????????? !!= ????????? | | ????????????????????????????####]!=#???? #???????? | | ?????????????????############;#%%!!## ## ?????? | | ?????????????????# *%[!*]== ^ ??? | | ?????????????????# s g %[ %%*!* ??? | | ?????????????????# g** [*=%= #??? | | ?????????????????# ####@#####"##""#""""## ##??? | | ?????????????????# #??#=#???###??##????????????? | | ?????????????????# #??# #??????????????????????? | | ?????????????????# #??# #??????????????????????? | | ?????????????????# #??# #??????????????????????? | | ??????????########[ ####s#??????????????????????? | | ??????????#=%**= *% #??????????????????????? | | ??????????#%######! ####+#??????????????????????? | | ??????????# ###??# #???????????????????????????? | | ??????????# [ #??# #???????????????????????????? | | ??????????# #??# #???????????????????????????? | | ??????????# #??# #???????????????????????????? | | ??????????# ###??# #???????????????????????????? | | ??????????# #????# #???????????????????????????? | | ????####### #????# #???????????????????????????? | | ????#"""" #????# #???????????????????????????? | | ????#" #????# #???????????????????????????? | | ????#" #????# #???????????????????????????? | | ????#########????# #???????????????????????????? | | ?????????????????# #???????????????????????????? | | ?????????????????# #???????????????????????????? | | ????????????????## #???????????????????????????? | | ????????????????# #???????????????????????????? | | ????????????????## #???????????????????????????? | | ?????????????????# #???????????????????????????? | +----------------------------------------------------+ Best States ------------- Heat Dissipation 105 Energy Generation 41 Energy Capacity 575 Matter Stores 300 Matter Capacity 300 Sight Range 16 Robot Scan Range 15 Terrain Scan Density 10 Armor Coverage 600 Resistance: TH 10 Core Shielding 20 Propulsion Shielding 90 Evasion (%) 40 Targeting Accuracy 6 Target Analysis 6 Core Analysis 9 Recoil Reduction 4 Relay Coupler Types 1 Relay Coupler Value 31 Item Schematics ----------------- None Robot Schematics ------------------ None Fabricated ------------ R-10 Processor | x2 | -6/Factory | Preloaded Repaired ---------- Nothing Alien Tech Used ----------------- None Achievements -------------- None Challenges ------------ None Game ------ Seed GravityVoltaicGuard Manual? 0 Play Time 01:28:42 Cumulative 186.5 hours Start 2025.07.07 @ 19:06:38 End 2025.07.11 @ 09:59:53 Sessions 5 Manual Loads 0 Difficulty Rogue Special Mode None Game No. 291 Rogue 290 Adventurer 1 Explorer 0 Win Type - Total 2 Types 2/0/0/0/0/0/0/0/0/0 Lore% 78 Gallery% 69 Achievement% 58 Wizard Run 0 Options --------- Layout 1 ASCII 0 Keyboard 0 Movement Mouse Keybinds 1 Fullscreen 2 Font 24/Smallcaps Map View 50x35 Zoom Use 0% Tactical HUD 1 Map Filters NONE Filters NONE Steam 0 RUN: bfe66fc0-b82c-4956-bf38-9d656bb5ec8b